[Event "*** Titled Tuesday Blitz"]
[Site "Chess.com"]
[Date "2020.11.10"]
[Round "3"]
[White "Oligan22"]
[Black "LubovMarkelova"]
[Result "1/2-1/2"]
[WhiteElo "2429"]
[BlackElo "2227"]
[TimeControl "180+1"]
[EndTime "10:31:49 PST"]
[Termination "Game drawn by repetition"]

1. e4 {[%clk 0:03:00.9]} 1... e6 {[%clk 0:02:58.2]} 2. d4 {[%clk 0:03:00.4]}
2... d5 {[%clk 0:02:58.1]} 3. Nd2 {[%clk 0:03:01]} 3... c5 {[%clk 0:02:56.6]} 4.
Ngf3 {[%clk 0:03:00.5]} 4... cxd4 {[%clk 0:02:55.4]} 5. Nxd4 {[%clk 0:02:59.7]}
5... Nf6 {[%clk 0:02:55.5]} 6. e5 {[%clk 0:02:51.3]} 6... Nfd7 {[%clk
0:02:54.6]} 7. f4 {[%clk 0:02:51.9]} 7... Nxe5 {[%clk 0:02:54.3]} 8. Nxe6 {[%clk
0:02:37.7]} 8... Bxe6 {[%clk 0:02:20.8]} 9. fxe5 {[%clk 0:02:37.4]} 9... Nc6
{[%clk 0:02:19.1]} 10. Nf3 {[%clk 0:02:36.8]} 10... Bc5 {[%clk 0:02:14.7]} 11.
Bd3 {[%clk 0:02:34.7]} 11... Qe7 {[%clk 0:01:49.3]} 12. Bg5 {[%clk 0:02:32.4]}
12... f6 {[%clk 0:01:42.7]} 13. Bh4 {[%clk 0:02:26.8]} 13... Bg4 {[%clk
0:01:31.2]} 14. Qe2 {[%clk 0:02:05.8]} 14... Bxf3 {[%clk 0:01:26.6]} 15. gxf3
{[%clk 0:02:06.7]} 15... Qxe5 {[%clk 0:01:21.4]} 16. O-O-O {[%clk 0:02:02]}
16... Qxe2 {[%clk 0:01:14.9]} 17. Bxe2 {[%clk 0:02:02.9]} 17... O-O-O {[%clk
0:01:13.7]} 18. Bd3 {[%clk 0:01:47.5]} 18... g5 {[%clk 0:00:52.4]} 19. Bg3
{[%clk 0:01:47.3]} 19... Bd6 {[%clk 0:00:52.3]} 20. Bf5+ {[%clk 0:01:43.7]}
20... Kc7 {[%clk 0:00:52.4]} 21. a3 {[%clk 0:01:30.1]} 21... h5 {[%clk
0:00:44.2]} 22. Be6 {[%clk 0:01:19.1]} 22... Ne7 {[%clk 0:00:36]} 23. Rd3 {[%clk
0:01:04.3]} 23... h4 {[%clk 0:00:35.5]} 24. Bf2 {[%clk 0:00:55.6]} 24... Bf4+
{[%clk 0:00:30.6]} 25. Kb1 {[%clk 0:00:56]} 25... Rd6 {[%clk 0:00:26.4]} 26. Bh3
{[%clk 0:00:50.4]} 26... Nc6 {[%clk 0:00:25.3]} 27. Rhd1 {[%clk 0:00:49]} 27...
Rhd8 {[%clk 0:00:24.3]} 28. Bg1 {[%clk 0:00:49]} 28... d4 {[%clk 0:00:19.2]} 29.
Bg4 {[%clk 0:00:41.6]} 29... Be5 {[%clk 0:00:19]} 30. b4 {[%clk 0:00:40.4]}
30... Ne7 {[%clk 0:00:19.1]} 31. Bf2 {[%clk 0:00:23.6]} 31... Ng6 {[%clk
0:00:19]} 32. h3 {[%clk 0:00:21.3]} 32... Nf4 {[%clk 0:00:19]} 33. R3d2 {[%clk
0:00:22]} 33... d3 {[%clk 0:00:18.1]} 34. cxd3 {[%clk 0:00:17.7]} 34... Nxd3
{[%clk 0:00:15.8]} 35. Be3 {[%clk 0:00:14.8]} 35... Nf4 {[%clk 0:00:14.1]} 36.
Rxd6 {[%clk 0:00:13]} 36... Rxd6 {[%clk 0:00:14.3]} 37. Rc1+ {[%clk 0:00:13]}
37... Rc6 {[%clk 0:00:12.6]} 38. Rd1 {[%clk 0:00:13]} 38... Rd6 {[%clk
0:00:12.5]} 39. Rc1+ {[%clk 0:00:13.2]} 39... Rc6 {[%clk 0:00:11.4]} 40. Rd1
{[%clk 0:00:13.6]} 40... Rd6 {[%clk 0:00:11.2]} 1/2-1/2

[Event "*** Titled Tuesday Blitz"]
[Site "Chess.com"]
[Date "2020.11.10"]
[Round "3"]
[White "FLamps8"]
[Black "GrigorGrigorov"]
[Result "0-1"]
[WhiteElo "2499"]
[BlackElo "2747"]
[TimeControl "180+1"]
[EndTime "10:31:50 PST"]
[Termination "GrigorGrigorov won by resignation"]

1. d4 {[%clk 0:02:59.7]} 1... Nf6 {[%clk 0:02:59]} 2. Bf4 {[%clk 0:02:59.2]}
2... d5 {[%clk 0:02:58.2]} 3. e3 {[%clk 0:02:58.5]} 3... c5 {[%clk 0:02:57.8]}
4. c3 {[%clk 0:02:55.7]} 4... Nc6 {[%clk 0:02:56.8]} 5. Bd3 {[%clk 0:02:51.6]}
5... Qb6 {[%clk 0:02:48]} 6. Qc1 {[%clk 0:02:46.1]} 6... Bg4 {[%clk 0:02:41.6]}
7. Nd2 {[%clk 0:02:37.6]} 7... Rc8 {[%clk 0:02:40.7]} 8. Ngf3 {[%clk 0:02:29.7]}
8... e6 {[%clk 0:02:37.7]} 9. h3 {[%clk 0:02:25.6]} 9... Bh5 {[%clk 0:02:34.1]}
10. O-O {[%clk 0:02:24.8]} 10... Be7 {[%clk 0:02:33.3]} 11. Qb1 {[%clk
0:02:13.3]} 11... Bg6 {[%clk 0:02:27.5]} 12. Bxg6 {[%clk 0:02:07.7]} 12... hxg6
{[%clk 0:02:28.4]} 13. Ne5 {[%clk 0:02:08.2]} 13... Nxe5 {[%clk 0:02:19.6]} 14.
Bxe5 {[%clk 0:02:09.1]} 14... Qa6 {[%clk 0:02:16.1]} 15. a4 {[%clk 0:01:48]}
15... Qe2 {[%clk 0:02:13.3]} 16. Qd1 {[%clk 0:01:45.9]} 16... Qxd1 {[%clk
0:02:11.6]} 17. Rfxd1 {[%clk 0:01:46.8]} 17... O-O {[%clk 0:02:02.6]} 18. a5
{[%clk 0:01:29.8]} 18... a6 {[%clk 0:01:52.9]} 19. dxc5 {[%clk 0:01:13.9]} 19...
Rxc5 {[%clk 0:01:48.2]} 20. Bd4 {[%clk 0:00:59.9]} 20... Rc6 {[%clk 0:01:44.6]}
21. Nf3 {[%clk 0:00:57.9]} 21... Ne4 {[%clk 0:01:33.4]} 22. Ne5 {[%clk
0:00:58.1]} 22... Rcc8 {[%clk 0:01:32.6]} 23. f3 {[%clk 0:00:47.6]} 23... Nd6
{[%clk 0:01:31.3]} 24. Nd7 {[%clk 0:00:39.1]} 24... Rfd8 {[%clk 0:01:26.3]} 25.
Nb6 {[%clk 0:00:39]} 25... Rc6 {[%clk 0:01:26.3]} 26. g4 {[%clk 0:00:22.3]}
26... f6 {[%clk 0:01:20.2]} 27. f4 {[%clk 0:00:17.6]} 27... Nb5 {[%clk 0:01:08]}
28. Na4 {[%clk 0:00:14.3]} 28... Kf7 {[%clk 0:01:03]} 29. Bb6 {[%clk 0:00:12.4]}
29... Rh8 {[%clk 0:01:02.6]} 30. Kg2 {[%clk 0:00:12.1]} 30... Nd6 {[%clk
0:00:52.5]} 31. Bc5 {[%clk 0:00:09.3]} 31... Nc4 {[%clk 0:00:50.5]} 32. Ba7
{[%clk 0:00:08.5]} 32... Nxa5 {[%clk 0:00:47.1]} 33. Nb6 {[%clk 0:00:07.6]}
33... Nb3 {[%clk 0:00:43.1]} 34. Ra3 {[%clk 0:00:07.9]} 34... Bxa3 {[%clk
0:00:42.3]} 35. bxa3 {[%clk 0:00:07.9]} 35... Nc5 {[%clk 0:00:41.9]} 36. c4
{[%clk 0:00:07.5]} 36... Ne4 {[%clk 0:00:25.3]} 37. cxd5 {[%clk 0:00:07]} 37...
Rc2+ {[%clk 0:00:25.3]} 38. Kf3 {[%clk 0:00:07.3]} 38... f5 {[%clk 0:00:21.9]}
39. dxe6+ {[%clk 0:00:06.9]} 39... Kxe6 {[%clk 0:00:21.5]} 40. gxf5+ {[%clk
0:00:06.8]} 40... gxf5 {[%clk 0:00:21.1]} 0-1

[Event "*** Titled Tuesday Blitz"]
[Site "Chess.com"]
[Date "2020.11.10"]
[Round "3"]
[White "Legendinunknown"]
[Black "RobPeresian"]
[Result "0-1"]
[WhiteElo "2722"]
[BlackElo "2471"]
[TimeControl "180+1"]
[EndTime "10:31:50 PST"]
[Termination "RobPeresian won by resignation"]

1. d4 {[%clk 0:03:00.9]} 1... d5 {[%clk 0:02:58.3]} 2. c4 {[%clk 0:03:00.8]}
2... c6 {[%clk 0:02:58.3]} 3. Nf3 {[%clk 0:03:00]} 3... Nf6 {[%clk 0:02:58.5]}
4. Nc3 {[%clk 0:02:57.7]} 4... dxc4 {[%clk 0:02:58.4]} 5. a4 {[%clk 0:02:56.9]}
5... Bf5 {[%clk 0:02:58.1]} 6. Ne5 {[%clk 0:02:56.9]} 6... Nbd7 {[%clk 0:02:57]}
7. Nxc4 {[%clk 0:02:56.7]} 7... Qc7 {[%clk 0:02:57.5]} 8. g3 {[%clk 0:02:56.2]}
8... e5 {[%clk 0:02:58.1]} 9. dxe5 {[%clk 0:02:55.7]} 9... Nxe5 {[%clk 0:02:59]}
10. Bf4 {[%clk 0:02:54.1]} 10... Nfd7 {[%clk 0:02:59.6]} 11. Bg2 {[%clk
0:02:53.6]} 11... f6 {[%clk 0:03:00]} 12. O-O {[%clk 0:02:51.3]} 12... Nc5
{[%clk 0:03:00.4]} 13. Rc1 {[%clk 0:01:46.1]} 13... Rd8 {[%clk 0:02:53]} 14. Qe1
{[%clk 0:01:45.9]} 14... Be7 {[%clk 0:02:22.1]} 15. Nxe5 {[%clk 0:00:58.8]}
15... fxe5 {[%clk 0:02:23]} 16. Be3 {[%clk 0:00:59]} 16... Nb3 {[%clk
0:02:12.1]} 17. Rd1 {[%clk 0:00:58.2]} 17... O-O {[%clk 0:02:10.7]} 18. Ne4
{[%clk 0:00:57.8]} 18... Nd4 {[%clk 0:01:59.2]} 19. Bxd4 {[%clk 0:00:46.6]}
19... exd4 {[%clk 0:01:56.5]} 20. e3 {[%clk 0:00:47]} 20... dxe3 {[%clk
0:01:48.1]} 21. Qxe3 {[%clk 0:00:47.9]} 21... Qb6 {[%clk 0:01:47.9]} 22. Qe2
{[%clk 0:00:40.7]} 22... a5 {[%clk 0:01:24.5]} 23. Qc4+ {[%clk 0:00:32.5]} 23...
Kh8 {[%clk 0:01:23.8]} 24. Rxd8 {[%clk 0:00:32.3]} 24... Qxd8 {[%clk 0:01:15.1]}
25. Nc5 {[%clk 0:00:28.6]} 25... Qb6 {[%clk 0:01:10.6]} 26. Ne6 {[%clk 0:00:26]}
26... Rf6 {[%clk 0:01:04.8]} 27. Nd4 {[%clk 0:00:24.6]} 27... Bc5 {[%clk
0:00:48.5]} 28. Nxf5 {[%clk 0:00:23.5]} 28... Rxf5 {[%clk 0:00:48.7]} 29. Qe6
{[%clk 0:00:22.5]} 29... Rf8 {[%clk 0:00:38]} 30. Kh1 {[%clk 0:00:21.8]} 30...
Qxb2 {[%clk 0:00:32.6]} 31. Be4 {[%clk 0:00:20.7]} 31... Qe2 {[%clk 0:00:26.5]}
32. Kg2 {[%clk 0:00:17.9]} 32... Bxf2 {[%clk 0:00:16.5]} 33. Bf5 {[%clk
0:00:10.5]} 33... Be3+ {[%clk 0:00:09.4]} 34. Kh3 {[%clk 0:00:10.2]} 34... Qxf1+
{[%clk 0:00:09.1]} 35. Kg4 {[%clk 0:00:11.1]} 35... Qxf5+ {[%clk 0:00:08.4]} 36.
Qxf5 {[%clk 0:00:10.8]} 36... Rxf5 {[%clk 0:00:08.4]} 37. Kxf5 {[%clk
0:00:11.7]} 37... b5 {[%clk 0:00:08.8]} 38. axb5 {[%clk 0:00:11.9]} 38... cxb5
{[%clk 0:00:09.1]} 39. Ke4 {[%clk 0:00:12.6]} 39... a4 {[%clk 0:00:09.5]} 40.
Kxe3 {[%clk 0:00:12.9]} 40... a3 {[%clk 0:00:09.9]} 41. Kd3 {[%clk 0:00:13.8]}
0-1

[Event "*** Titled Tuesday Blitz"]
[Site "Chess.com"]
[Date "2020.11.10"]
[Round "3"]
[White "nicoderboss24"]
[Black "mjray79"]
[Result "0-1"]
[WhiteElo "2218"]
[BlackElo "2502"]
[TimeControl "180+1"]
[EndTime "10:31:51 PST"]
[Termination "mjray79 won by resignation"]

1. e4 {[%clk 0:02:44.7]} 1... e5 {[%clk 0:02:59.8]} 2. Bc4 {[%clk 0:02:44.5]}
2... Nf6 {[%clk 0:02:59]} 3. d4 {[%clk 0:02:44.8]} 3... exd4 {[%clk 0:02:41.2]}
4. Nf3 {[%clk 0:02:45]} 4... d5 {[%clk 0:02:32.3]} 5. exd5 {[%clk 0:02:43.1]}
5... Nxd5 {[%clk 0:02:32.3]} 6. Qxd4 {[%clk 0:02:42.4]} 6... Qe7+ {[%clk
0:02:13.8]} 7. Ne5 {[%clk 0:01:31.2]} 7... Nc6 {[%clk 0:02:10.9]} 8. Qxd5 {[%clk
0:01:31.1]} 8... Nxe5 {[%clk 0:01:54.2]} 9. O-O {[%clk 0:01:26.1]} 9... Nxc4
{[%clk 0:01:53.5]} 10. Qxc4 {[%clk 0:01:26]} 10... Be6 {[%clk 0:01:53.7]} 11.
Qe4 {[%clk 0:01:23.6]} 11... O-O-O {[%clk 0:01:49.2]} 12. Nc3 {[%clk 0:01:22]}
12... a6 {[%clk 0:01:45.3]} 13. Be3 {[%clk 0:01:19.4]} 13... Qb4 {[%clk
0:01:40.6]} 14. Qxb4 {[%clk 0:01:16.3]} 14... Bxb4 {[%clk 0:01:41.5]} 15. a3
{[%clk 0:01:16.9]} 15... Bd6 {[%clk 0:01:35.7]} 16. Rad1 {[%clk 0:01:13.9]}
16... f5 {[%clk 0:01:33.8]} 17. f4 {[%clk 0:01:11.4]} 17... Rhe8 {[%clk
0:01:28.1]} 18. Rfe1 {[%clk 0:01:05.8]} 18... Bc4 {[%clk 0:01:27]} 19. g3 {[%clk
0:00:58.6]} 19... Rd7 {[%clk 0:01:25.3]} 20. Kg2 {[%clk 0:00:54.1]} 20... Rde7
{[%clk 0:01:10.4]} 21. Bf2 {[%clk 0:00:54.1]} 21... Be6 {[%clk 0:01:06.4]} 22.
Re2 {[%clk 0:00:50.7]} 22... Bd5+ {[%clk 0:00:51.8]} 23. Rxd5 {[%clk 0:00:50.9]}
23... Rxe2 {[%clk 0:00:51.8]} 24. Nxe2 {[%clk 0:00:49.8]} 24... Rxe2 {[%clk
0:00:52.7]} 25. Rxf5 {[%clk 0:00:36.6]} 25... Rxc2 {[%clk 0:00:52.5]} 26. b4
{[%clk 0:00:29.9]} 26... Ra2 {[%clk 0:00:36.7]} 27. Rf7 {[%clk 0:00:26.9]} 27...
h5 {[%clk 0:00:32]} 28. Rxg7 {[%clk 0:00:21.9]} 28... Rxa3 {[%clk 0:00:32.3]}
29. f5 {[%clk 0:00:20.5]} 29... Bxb4 {[%clk 0:00:28.6]} 30. f6 {[%clk
0:00:20.6]} 30... Rd3 {[%clk 0:00:26.7]} 31. Rg8+ {[%clk 0:00:18.7]} 31... Rd8
{[%clk 0:00:25.4]} 32. f7 {[%clk 0:00:18.3]} 32... Rf8 {[%clk 0:00:20.9]} 33. h3
{[%clk 0:00:10.7]} 33... Kd7 {[%clk 0:00:20.2]} 34. Rg5 {[%clk 0:00:09.1]} 34...
Rxf7 {[%clk 0:00:19.4]} 35. Rxh5 {[%clk 0:00:09.5]} 35... a5 {[%clk 0:00:19.5]}
36. Rd5+ {[%clk 0:00:09.1]} 36... Kc6 {[%clk 0:00:19.3]} 37. Rd4 {[%clk
0:00:08.9]} 37... Bc5 {[%clk 0:00:16.3]} 38. Rd2 {[%clk 0:00:08.9]} 38... Rxf2+
{[%clk 0:00:15.5]} 39. Rxf2 {[%clk 0:00:09.8]} 39... Bxf2 {[%clk 0:00:16]} 40.
Kxf2 {[%clk 0:00:10.7]} 40... a4 {[%clk 0:00:16.5]} 41. h4 {[%clk 0:00:11.6]}
41... a3 {[%clk 0:00:16.9]} 0-1

[Event "*** Titled Tuesday Blitz"]
[Site "Chess.com"]
[Date "2020.11.10"]
[Round "3"]
[White "salomez"]
[Black "Gerodot71"]
[Result "0-1"]
[WhiteElo "2160"]
[BlackElo "2492"]
[TimeControl "180+1"]
[EndTime "10:31:53 PST"]
[Termination "Gerodot71 won on time"]

1. e4 {[%clk 0:03:00.9]} 1... e5 {[%clk 0:03:00]} 2. Nf3 {[%clk 0:02:59.2]} 2...
Nc6 {[%clk 0:03:00.6]} 3. Bc4 {[%clk 0:02:58.6]} 3... Bc5 {[%clk 0:02:58.5]} 4.
d3 {[%clk 0:02:57.1]} 4... Nf6 {[%clk 0:02:57]} 5. Nbd2 {[%clk 0:02:56.7]} 5...
h6 {[%clk 0:02:53.4]} 6. Nf1 {[%clk 0:02:55.1]} 6... d5 {[%clk 0:02:51.2]} 7.
exd5 {[%clk 0:02:49.8]} 7... Nxd5 {[%clk 0:02:52.1]} 8. Ng3 {[%clk 0:02:49.1]}
8... O-O {[%clk 0:02:43.9]} 9. O-O {[%clk 0:02:47.5]} 9... Bb6 {[%clk 0:02:35]}
10. Re1 {[%clk 0:02:42.3]} 10... Be6 {[%clk 0:02:34]} 11. Bxd5 {[%clk
0:02:19.5]} 11... Qxd5 {[%clk 0:02:19.8]} 12. Be3 {[%clk 0:02:20.4]} 12... Nd4
{[%clk 0:02:16.4]} 13. Bxd4 {[%clk 0:02:08]} 13... exd4 {[%clk 0:02:17.3]} 14.
Re5 {[%clk 0:02:07.8]} 14... Qd6 {[%clk 0:02:15.1]} 15. Qe2 {[%clk 0:01:57.1]}
15... Rfe8 {[%clk 0:02:06.7]} 16. Re1 {[%clk 0:01:55.8]} 16... Bd7 {[%clk
0:01:57.8]} 17. Nf5 {[%clk 0:01:37]} 17... Rxe5 {[%clk 0:01:42.2]} 18. Qxe5
{[%clk 0:01:21.5]} 18... Qxe5 {[%clk 0:01:35.8]} 19. Rxe5 {[%clk 0:01:20.1]}
19... c5 {[%clk 0:01:34.8]} 20. g4 {[%clk 0:01:03.2]} 20... Kf8 {[%clk
0:01:31.8]} 21. Nd2 {[%clk 0:00:33.9]} 21... Re8 {[%clk 0:01:21.2]} 22. Rxe8+
{[%clk 0:00:20.8]} 22... Bxe8 {[%clk 0:01:19.5]} 23. Ne4 {[%clk 0:00:11.4]}
23... Bc6 {[%clk 0:01:09.9]} 24. f3 {[%clk 0:00:11.3]} 24... Bd5 {[%clk
0:01:04.7]} 25. b3 {[%clk 0:00:09.7]} 25... Be6 {[%clk 0:01:03.9]} 26. Kf2
{[%clk 0:00:08.8]} 26... h5 {[%clk 0:01:01.8]} 27. h3 {[%clk 0:00:08.6]} 27...
g6 {[%clk 0:01:01.7]} 28. Nfd6 {[%clk 0:00:08.2]} 28... Bd5 {[%clk 0:01:00.3]}
29. Nc4 {[%clk 0:00:07.9]} 29... Ke7 {[%clk 0:00:57.7]} 30. Kg3 {[%clk
0:00:06.8]} 30... Bc7+ {[%clk 0:00:53.3]} 31. Kh4 {[%clk 0:00:06.2]} 31... hxg4
{[%clk 0:00:53.7]} 32. hxg4 {[%clk 0:00:06.2]} 32... b6 {[%clk 0:00:53.1]} 33.
Kh3 {[%clk 0:00:05.5]} 33... Bf4 {[%clk 0:00:52.1]} 34. Kg2 {[%clk 0:00:05.3]}
34... f5 {[%clk 0:00:50.2]} 35. gxf5 {[%clk 0:00:05.3]} 35... gxf5 {[%clk
0:00:51.1]} 36. Ng3 {[%clk 0:00:05.4]} 36... Ke6 {[%clk 0:00:49.9]} 37. Kf2
{[%clk 0:00:05.3]} 37... b5 {[%clk 0:00:48.3]} 38. Na5 {[%clk 0:00:04.6]} 38...
Bc7 {[%clk 0:00:46.1]} 39. b4 {[%clk 0:00:04.6]} 39... cxb4 {[%clk 0:00:45.4]}
40. Nb3 {[%clk 0:00:04.4]} 40... Bb6 {[%clk 0:00:45.9]} 41. Ne2 {[%clk
0:00:03.6]} 41... Bxb3 {[%clk 0:00:42.8]} 42. axb3 {[%clk 0:00:03.4]} 42... a5
{[%clk 0:00:43]} 43. Nc1 {[%clk 0:00:02.7]} 43... Ke5 {[%clk 0:00:41.5]} 44. Ke2
{[%clk 0:00:02.5]} 44... Kf4 {[%clk 0:00:41.2]} 45. Kf2 {[%clk 0:00:02.7]} 45...
a4 {[%clk 0:00:41.3]} 46. Na2 {[%clk 0:00:02]} 46... Bc5 {[%clk 0:00:40.8]} 47.
Ke2 {[%clk 0:00:01.5]} 47... Kg3 {[%clk 0:00:40.5]} 0-1

[Event "*** Titled Tuesday Blitz"]
[Site "Chess.com"]
[Date "2020.11.10"]
[Round "3"]
[White "mirciulica14"]
[Black "Luklei18"]
[Result "1-0"]
[WhiteElo "2629"]
[BlackElo "2388"]
[TimeControl "180+1"]
[EndTime "10:31:54 PST"]
[Termination "mirciulica14 won on time"]

1. d4 {[%clk 0:03:00.9]} 1... Nf6 {[%clk 0:02:58.8]} 2. c4 {[%clk 0:03:01.3]}
2... g6 {[%clk 0:02:58.9]} 3. g3 {[%clk 0:03:01.4]} 3... Bg7 {[%clk 0:02:59.3]}
4. Bg2 {[%clk 0:03:02.1]} 4... O-O {[%clk 0:03:00]} 5. Nc3 {[%clk 0:03:02.8]}
5... d6 {[%clk 0:03:00.6]} 6. Nf3 {[%clk 0:03:03.5]} 6... Nbd7 {[%clk
0:03:00.9]} 7. O-O {[%clk 0:03:03.9]} 7... e5 {[%clk 0:03:01.6]} 8. e4 {[%clk
0:03:04.6]} 8... exd4 {[%clk 0:03:01.8]} 9. Nxd4 {[%clk 0:03:05.5]} 9... Re8
{[%clk 0:03:02.4]} 10. h3 {[%clk 0:03:06.1]} 10... a6 {[%clk 0:03:02]} 11. b3
{[%clk 0:03:04.1]} 11... Rb8 {[%clk 0:03:01.3]} 12. Bb2 {[%clk 0:03:03.6]} 12...
c5 {[%clk 0:03:01.7]} 13. Nc2 {[%clk 0:03:03.8]} 13... b5 {[%clk 0:03:02.3]} 14.
cxb5 {[%clk 0:03:04.5]} 14... axb5 {[%clk 0:03:02.7]} 15. Qxd6 {[%clk
0:03:04.1]} 15... Rb6 {[%clk 0:03:00.7]} 16. Qd2 {[%clk 0:02:26.2]} 16... Bb7
{[%clk 0:02:08]} 17. Ne3 {[%clk 0:02:07.4]} 17... Nxe4 {[%clk 0:01:40.8]} 18.
Nxe4 {[%clk 0:02:00.6]} 18... Bxb2 {[%clk 0:01:40.8]} 19. Qxb2 {[%clk
0:01:50.5]} 19... Bxe4 {[%clk 0:01:40.9]} 20. Bxe4 {[%clk 0:01:47.4]} 20... Rxe4
{[%clk 0:01:41.8]} 21. Rad1 {[%clk 0:01:46.9]} 21... Qe8 {[%clk 0:01:09]} 22.
Rd5 {[%clk 0:00:39.9]} 22... Ne5 {[%clk 0:00:46.6]} 23. Rfd1 {[%clk 0:00:39.6]}
23... Nf3+ {[%clk 0:00:25]} 24. Kg2 {[%clk 0:00:35.7]} 24... Nd4 {[%clk
0:00:25.9]} 25. Rxc5 {[%clk 0:00:23.9]} 25... Rxe3 {[%clk 0:00:15.4]} 26. Qxd4
{[%clk 0:00:20.6]} 26... Qa8+ {[%clk 0:00:07.5]} 27. Kg1 {[%clk 0:00:16.1]}
27... Re8 {[%clk 0:00:07.8]} 28. Rc7 {[%clk 0:00:10.7]} 28... Rbe6 {[%clk
0:00:07.7]} 29. Rcc1 {[%clk 0:00:05.6]} 29... Qxa2 {[%clk 0:00:07]} 30. Qd3
{[%clk 0:00:03.5]} 30... b4 {[%clk 0:00:04.2]} 31. Qc4 {[%clk 0:00:03.1]} 31...
Re2 {[%clk 0:00:01.8]} 32. Rf1 {[%clk 0:00:02.6]} 32... Qa3 {[%clk 0:00:01.2]}
33. Rcd1 {[%clk 0:00:02.5]} 33... R2e7 {[%clk 0:00:01.8]} 34. Rd4 {[%clk
0:00:02.8]} 34... Rb7 {[%clk 0:00:01.1]} 35. Qd3 {[%clk 0:00:03.3]} 35... Reb8
{[%clk 0:00:01.2]} 36. Rd1 {[%clk 0:00:03.5]} 1-0

[Event "*** Titled Tuesday Blitz"]
[Site "Chess.com"]
[Date "2020.11.10"]
[Round "3"]
[White "AldokhinIvan"]
[Black "tteshan"]
[Result "0-1"]
[WhiteElo "2546"]
[BlackElo "2372"]
[TimeControl "180+1"]
[EndTime "10:31:54 PST"]
[Termination "tteshan won on time"]

1. e4 {[%clk 0:02:55.7]} 1... c5 {[%clk 0:03:00.4]} 2. Nf3 {[%clk 0:02:55.9]}
2... Nc6 {[%clk 0:03:00.7]} 3. d4 {[%clk 0:02:56]} 3... cxd4 {[%clk 0:03:01.6]}
4. Nxd4 {[%clk 0:02:56.7]} 4... e6 {[%clk 0:03:02.2]} 5. Nc3 {[%clk 0:02:56.7]}
5... Qc7 {[%clk 0:03:01.7]} 6. Nxc6 {[%clk 0:02:56.2]} 6... bxc6 {[%clk
0:03:01.3]} 7. Bd3 {[%clk 0:02:57.1]} 7... Nf6 {[%clk 0:03:00.2]} 8. O-O {[%clk
0:02:56.9]} 8... Be7 {[%clk 0:02:56.5]} 9. f4 {[%clk 0:02:50.3]} 9... d5 {[%clk
0:02:54.8]} 10. e5 {[%clk 0:02:30.2]} 10... Nd7 {[%clk 0:02:55]} 11. Kh1 {[%clk
0:02:30.3]} 11... Nc5 {[%clk 0:02:48.3]} 12. Be2 {[%clk 0:01:59.5]} 12... O-O
{[%clk 0:02:47.5]} 13. Be3 {[%clk 0:01:58.7]} 13... a5 {[%clk 0:02:42.5]} 14.
Qe1 {[%clk 0:01:51.2]} 14... Ba6 {[%clk 0:02:33.2]} 15. Bxa6 {[%clk 0:01:24.2]}
15... Nxa6 {[%clk 0:02:33]} 16. Qg3 {[%clk 0:01:10.2]} 16... c5 {[%clk
0:02:29.4]} 17. f5 {[%clk 0:01:01.2]} 17... f6 {[%clk 0:01:48.4]} 18. fxe6
{[%clk 0:00:51.6]} 18... Nb4 {[%clk 0:00:44.5]} 19. Bh6 {[%clk 0:00:46.3]} 19...
Bd8 {[%clk 0:00:42.5]} 20. Bf4 {[%clk 0:00:33.3]} 20... f5 {[%clk 0:00:31.1]}
21. a3 {[%clk 0:00:29.8]} 21... Nxc2 {[%clk 0:00:29]} 22. Nxd5 {[%clk
0:00:28.4]} 22... Qb7 {[%clk 0:00:24.2]} 23. Qf3 {[%clk 0:00:19.4]} 23... Kh8
{[%clk 0:00:17.9]} 24. Rad1 {[%clk 0:00:18.3]} 24... Nd4 {[%clk 0:00:17.7]} 25.
Rxd4 {[%clk 0:00:16.5]} 25... cxd4 {[%clk 0:00:17.8]} 26. h4 {[%clk 0:00:16.6]}
26... Bxh4 {[%clk 0:00:16.5]} 27. g3 {[%clk 0:00:09.5]} 27... Be7 {[%clk
0:00:14.6]} 28. Rd1 {[%clk 0:00:06.7]} 28... Rfd8 {[%clk 0:00:13.7]} 29. Rxd4
{[%clk 0:00:06.7]} 29... Rac8 {[%clk 0:00:13.4]} 30. Kh2 {[%clk 0:00:06]} 30...
Qxb2+ {[%clk 0:00:12.2]} 31. Rd2 {[%clk 0:00:05.1]} 31... Qxa3 {[%clk
0:00:11.4]} 32. Qxa3 {[%clk 0:00:03.7]} 32... Bxa3 {[%clk 0:00:12.3]} 33. e7
{[%clk 0:00:03.2]} 33... Bxe7 {[%clk 0:00:07.7]} 0-1